fUSD/lending_fUSD_20250206
["ID","MTS","AMOUNT","RATE_DAILY","PERIOD"]
[351819675,1738801832347,-197.25,0.00018368,2]
[351819676,1738801832356,-173.64,0.00018379,2]
[351819677,1738801832365,-2000.0,0.00018384,2]
[351819678,1738801832376,-1419.89,0.00018595,30]
[351819679,1738801832385,-168.81,0.00018862,2]
[351819680,1738801832394,-514.43,0.00018888,2]
[351819681,1738801832404,-200.0,0.00018986,2]
[351819682,1738801832413,-700.0,0.00019,2]
[351819683,1738801832423,-2000.0,0.00019064,2]
[351819684,1738801832432,-200.0,0.0001907,2]
[351819685,1738801832442,-157.95451564,0.0001907,2]
[351819686,1738801832451,-500.0,0.000191,6]
[351819687,1738801832461,-166.66,0.00019106,2]
[351819688,1738801832470,-150.0,0.00019178,2]
[351819689,1738801832479,-1000.0,0.000192,7]
[351819690,1738801832488,-1500.0,0.000193,7]
[351819691,1738801832497,-150.0,0.00019332,4]
[351819692,1738801832507,-150.0,0.00019332,4]
[351819693,1738801832516,-2000.0,0.000194,7]
[351819694,1738801832526,-2500.0,0.000195,7]
[351819695,1738801832535,-500.0,0.000196,7]
[351819696,1738801832545,-150.0,0.00019683,2]
[351819697,1738801832554,-3000.0,0.000197,2]
[351819698,1738801832563,-500.0,0.000197,7]
[351819699,1738801832572,-2000.0,0.00019745,2]
[351819700,1738801832581,-500.0,0.000198,7]
[351819701,1738801832591,-4023.0,0.00019857,2]
[351819702,1738801832600,-165.36,0.00019886,2]
[351819703,1738801832609,-500.0,0.000199,7]
[351819704,1738801832619,-4000.0,0.000199,2]
[351819705,1738801832628,-150.0,0.00019904,2]
[351819706,1738801832637,-150.0,0.0001992,2]
[351819707,1738801832646,-1348.465,0.00019936,2]
[351819708,1738801832655,-500.0,0.0001994,2]
[351819709,1738801832664,-150.0,0.00019951,2]
[351819710,1738801832674,-150.0,0.00019983,2]
[351819711,1738801832683,-33181.04597491,0.0002,5]
[351819712,1738801832692,-2110.0,0.0002,2]
[351819713,1738801832701,-219.99,0.0002,31]
[351819714,1738801832710,-219.99,0.0002,31]
[351819715,1738801832719,-219.99,0.0002,31]
[351819716,1738801832728,-219.99,0.0002,31]
[351819717,1738801832737,-219.99,0.0002,31]
[351819718,1738801832747,-219.99,0.0002,31]
[351819719,1738801832756,-219.99,0.0002,31]
[351819720,1738801832765,-219.99,0.0002,31]
[351819721,1738801832774,-219.99,0.0002,31]
[351819722,1738801832783,-219.99,0.0002,31]
[351819723,1738801832792,-219.99,0.0002,31]
[351819724,1738801832801,-219.99,0.0002,31]
[351819725,1738801832810,-219.99,0.0002,31]
[351819726,1738801832820,-219.99,0.0002,31]
[351819727,1738801832829,-219.99,0.0002,31]
[351819728,1738801832839,-219.99,0.0002,31]
[351819729,1738801832848,-1000.0,0.00020003,2]
[351819730,1738801832857,-150.0,0.00020032,2]
[351819731,1738801832866,-150.0,0.00020047,4]
[351819732,1738801832876,-2000.0,0.00020073,2]
[351819733,1738801832885,-150.0,0.00020074,2]
[351819734,1738801832894,-1000.0,0.00020089,2]
[351819735,1738801832904,-519.088576,0.0002009,2]
[351819736,1738801832913,-574.4126413,0.0002009,2]
[351819737,1738801832922,-622.90629124,0.0002009,2]
[351819738,1738801832932,-500.0,0.000201,2]
[351819739,1738801832942,-500.0,0.000201,2]
[351819740,1738801832955,-500.0,0.000201,2]
[351819741,1738801832964,-500.0,0.000201,2]
[351819742,1738801832974,-500.0,0.000201,2]
[351819743,1738801832984,-276.1,0.000201,2]
[351819744,1738801832993,-515.6,0.000201,2]
[351819745,1738801833003,-500.0,0.000201,2]
[351819746,1738801833012,-500.0,0.000201,2]
[351819747,1738801833022,-514.92321701,0.000201,2]
[351819748,1738801833032,-576.87,0.000201,2]
[351819749,1738801833042,-500.0,0.000201,2]
[351819750,1738801833051,-500.0,0.000201,2]
[351819751,1738801833061,-500.0,0.000201,2]
[351819752,1738801833070,-500.0,0.000201,2]
[351819753,1738801833080,-500.0,0.000201,2]
[351819754,1738801833089,-500.0,0.000201,2]
[351819755,1738801833099,-500.0,0.000201,2]
[351819756,1738801833109,-500.0,0.000201,2]
[351819757,1738801833118,-500.0,0.000201,2]
[351819758,1738801833128,-500.0,0.000201,2]
[351819759,1738801833137,-500.0,0.000201,2]
[351819760,1738801833148,-500.0,0.000201,2]
[351819761,1738801833161,-500.0,0.000201,2]
[351819762,1738801833171,-266.02,0.000201,2]
[351819763,1738801833180,-500.0,0.000201,2]
[351819764,1738801833190,-500.0,0.000201,2]
[351819765,1738801833200,-500.0,0.000201,2]
[351819766,1738801833209,-604.167916,0.000201,2]
[351819767,1738801833218,-500.0,0.000201,2]
[351819768,1738801833228,-500.0,0.000201,2]
[351819769,1738801833239,-500.0,0.000201,2]
[351819770,1738801833249,-189.47655122,0.000201,2]
[351819771,1738801833263,-310.52344878,0.000201,2]
[351819772,1738801833272,-500.0,0.000201,2]
[351819773,1738801833282,-500.0,0.000201,2]
[351819774,1738801833292,-500.0,0.000201,2]
[351819775,1738801833301,-500.0,0.000201,2]
[351819776,1738801833311,-500.0,0.000201,2]
[351819777,1738801833321,-500.0,0.000201,2]
[351819778,1738801833331,-500.0,0.000201,2]
[351819779,1738801833341,-452.08522758,0.000201,2]
[351819780,1738801833350,-500.0,0.000201,2]
[351819781,1738801833360,-500.0,0.000201,2]
[351819782,1738801833371,-500.0,0.000201,2]
[351819783,1738801833380,-500.0,0.000201,2]
[351819784,1738801833390,-500.0,0.000201,2]
[351819785,1738801833400,-500.0,0.000201,2]
[351819786,1738801833410,-500.0,0.000201,2]
[351819787,1738801833419,-187.9449076,0.000201,2]
[351819788,1738801833428,-500.0,0.000201,2]
[351819789,1738801833439,-500.0,0.000201,2]
[351819790,1738801833449,-500.0,0.000201,2]
[351819791,1738801833460,-500.0,0.000201,2]
[351819792,1738801833470,-500.0,0.000201,2]
[351819793,1738801833480,-500.0,0.000201,2]
[351819794,1738801833490,-500.0,0.000201,2]
[351819795,1738801833499,-500.0,0.000201,2]
[351819796,1738801833509,-316.32,0.000201,2]
[351819797,1738801833519,-500.0,0.000201,2]
[351819798,1738801833529,-589.11851818,0.000201,2]
[351819799,1738801833538,-6761.6334095,0.000201,2]
[351819800,1738801833550,-940.85446135,0.000201,2]
[351819801,1738801833560,-500.0,0.000201,2]
[351819802,1738801833569,-500.0,0.000201,2]
[351819803,1738801833579,-334.65134193,0.000201,2]
[351819804,1738801833588,-500.0,0.000201,2]
[351819805,1738801833598,-500.0,0.000201,2]
[351819806,1738801833607,-500.0,0.000201,2]
[351819807,1738801833617,-500.0,0.000201,2]
[351819808,1738801833628,-500.0,0.000201,2]
[351819809,1738801833638,-500.0,0.000201,2]
[351819811,1738801833647,-500.0,0.000201,2]
[351819813,1738801833656,-159.0,0.000201,2]
[351819815,1738801833665,-606.83,0.000201,2]
[351819817,1738801833675,-500.0,0.000201,2]
[351819819,1738801833684,-517.85,0.000201,2]
[351819821,1738801833695,-500.0,0.000201,2]
[351819823,1738801833704,-500.0,0.000201,2]
[351819825,1738801833714,-500.0,0.000201,2]
[351819827,1738801833723,-328.33,0.000201,2]
[351819829,1738801833733,-500.0,0.000201,2]
[351819831,1738801833743,-500.0,0.000201,2]
[351819833,1738801833753,-500.0,0.000201,2]
[351819835,1738801833763,-500.0,0.000201,2]
[351819837,1738801833772,-500.0,0.000201,2]
[351819839,1738801833783,-500.0,0.000201,2]
[351819841,1738801833792,-500.0,0.000201,2]
[351819843,1738801833802,-463.89201738,0.000201,2]
[351819846,1738801833823,-36.10798262,0.000201,2]
[351819848,1738801833833,-500.0,0.000201,2]
[351819849,1738801833843,-500.0,0.000201,2]
[351819851,1738801833853,-32.23706588,0.000201,2]
[351819980,1738801837931,-467.76293412,0.000201,2]
[351819981,1738801837941,-500.0,0.000201,2]
[351819982,1738801837950,-500.0,0.000201,2]
[351819983,1738801837960,-523.22,0.000201,2]
[351819984,1738801837969,-500.0,0.000201,2]
[351819985,1738801837978,-500.0,0.000201,2]
[351819986,1738801837988,-500.0,0.000201,2]
[351819987,1738801837997,-572.64,0.000201,2]
[351819988,1738801838006,-500.0,0.000201,2]
[351819989,1738801838015,-500.0,0.000201,2]
[351819990,1738801838024,-500.0,0.000201,2]
[351819991,1738801838035,-500.0,0.000201,2]
[351819992,1738801838044,-500.0,0.000201,2]
[351819993,1738801838053,-500.0,0.000201,2]
[351819994,1738801838063,-507.01,0.000201,2]
[351819995,1738801838073,-500.0,0.000201,2]
[351819996,1738801838082,-500.0,0.000201,2]
[351819997,1738801838092,-500.0,0.000201,2]
[351819998,1738801838101,-500.0,0.000201,2]
[351819999,1738801838110,-565.63,0.000201,2]
[351820000,1738801838120,-500.0,0.000201,2]
[351820001,1738801838132,-500.0,0.000201,2]
[351820002,1738801838141,-500.0,0.000201,2]
[351820003,1738801838155,-500.0,0.000201,2]
[351820004,1738801838165,-500.0,0.000201,2]
[351820005,1738801838174,-500.0,0.000201,2]
[351820006,1738801838184,-500.0,0.000201,2]
[351820007,1738801838194,-323.44659891,0.000201,2]
[351820008,1738801838203,-593.16,0.000201,2]
[351820009,1738801838213,-500.0,0.000201,2]
[351820010,1738801838223,-2500.0,0.000201,2]
[351820011,1738801838233,-500.0,0.000201,2]
[351820012,1738801838242,-500.0,0.000201,2]
[351820013,1738801838251,-500.0,0.000201,2]
[351820014,1738801838261,-500.0,0.000201,2]
[351820015,1738801838270,-500.0,0.000201,2]
[351820016,1738801838280,-500.0,0.000201,2]
[351820017,1738801838290,-500.0,0.000201,2]
[351820018,1738801838299,-500.0,0.000201,2]
[351820019,1738801838309,-500.0,0.000201,2]
[351820020,1738801838319,-500.0,0.000201,2]
[351820021,1738801838328,-510.56136696,0.000201,2]
[351820022,1738801838338,-500.0,0.000201,2]
[351820023,1738801838347,-500.0,0.000201,2]
[351820024,1738801838357,-500.0,0.000201,2]
[351820025,1738801838367,-500.0,0.000201,2]
[351820026,1738801838378,-500.0,0.000201,2]
[351820027,1738801838387,-500.0,0.000201,2]
[351820028,1738801838397,-500.0,0.000201,2]
[351820029,1738801838407,-500.0,0.000201,2]
[351820030,1738801838416,-500.0,0.000201,2]
[351820031,1738801838425,-500.0,0.000201,2]
[351820032,1738801838435,-500.0,0.000201,2]
[351820033,1738801838444,-500.0,0.000201,2]
[351820034,1738801838453,-500.0,0.000201,2]
[351820035,1738801838463,-534.5,0.000201,2]
[351820036,1738801838472,-500.0,0.000201,2]
[351820037,1738801838481,-500.0,0.000201,2]
[351820038,1738801838490,-500.0,0.000201,2]
[351820039,1738801838500,-222.82889275,0.000201,2]
[351820040,1738801838509,-500.0,0.000201,2]
[351820041,1738801838518,-500.0,0.000201,2]
[351820042,1738801838527,-500.0,0.000201,2]
[351820043,1738801838538,-500.0,0.000201,2]
[351820044,1738801838547,-500.0,0.00020101,2]
[351820045,1738801838556,-500.0,0.00020101,2]
[351820046,1738801838565,-500.0,0.00020101,2]
[351820047,1738801838575,-500.0,0.00020101,2]
[351820048,1738801838584,-500.0,0.00020101,2]
[351820049,1738801838594,-500.0,0.00020101,2]
[351820050,1738801838603,-500.0,0.00020101,2]
[351820051,1738801838612,-500.0,0.00020101,2]
[351820052,1738801838621,-500.0,0.00020101,2]
[351820053,1738801838632,-500.0,0.00020101,2]
[351820054,1738801838641,-500.0,0.00020101,2]
[351820055,1738801838651,-500.0,0.00020101,2]
[351820056,1738801838660,-203.51888729,0.00020101,2]
[351820057,1738801838669,-500.0,0.00020101,2]
[351820058,1738801838796,-500.0,0.00020101,2]
[351820059,1738801838807,-500.0,0.00020101,2]
[351820060,1738801838817,-500.0,0.00020101,2]
[351820061,1738801838826,-500.0,0.00020101,2]
[351820062,1738801838836,-500.0,0.00020101,2]
[351820063,1738801838845,-500.0,0.00020101,2]
[351820064,1738801838855,-500.0,0.00020101,2]
[351820065,1738801838865,-500.0,0.00020101,2]
[351820066,1738801838874,-500.0,0.00020101,2]
[351820067,1738801838884,-500.0,0.00020101,2]
[351820068,1738801838893,-531.34400073,0.00020101,2]
[351820069,1738801838902,-500.0,0.00020101,2]
[351820070,1738801838911,-500.0,0.00020101,2]
[351820071,1738801838921,-500.0,0.00020101,2]
[351820072,1738801838931,-500.0,0.00020101,2]
[351820073,1738801838940,-500.0,0.00020101,2]
[351820074,1738801838949,-500.0,0.00020101,2]
[351820075,1738801838958,-500.0,0.00020101,2]
[351820076,1738801838967,-500.0,0.00020101,2]
[351820077,1738801838977,-500.0,0.00020101,2]
[351820078,1738801838987,-500.0,0.00020101,2]
[351820079,1738801838995,-500.0,0.00020101,2]
[351820080,1738801839005,-500.0,0.00020101,2]
[351820081,1738801839014,-500.0,0.00020101,2]
[351820082,1738801839023,-228.52185079,0.00020101,2]
[351820083,1738801839032,-500.0,0.00020101,2]
[351820084,1738801839041,-500.0,0.00020101,2]
[351820085,1738801839051,-500.0,0.00020101,2]
[351820086,1738801839059,-500.0,0.00020101,2]
[351820087,1738801839068,-500.0,0.00020101,2]
[351820088,1738801839078,-500.0,0.00020101,2]
[351820089,1738801839087,-500.0,0.00020101,2]
[351820090,1738801839095,-500.0,0.00020101,2]
[351820091,1738801839104,-500.0,0.00020101,2]
[351820092,1738801839114,-500.0,0.00020101,2]
[351820093,1738801839123,-500.0,0.00020101,2]
[351820094,1738801839133,-500.0,0.00020101,2]
[351820095,1738801839142,-500.0,0.00020101,2]
[351820096,1738801839154,-500.0,0.00020101,2]
[351820097,1738801839164,-500.0,0.00020101,2]
[351820098,1738801839174,-500.0,0.00020101,2]
[351820099,1738801839183,-500.0,0.00020101,2]
[351820100,1738801839194,-500.0,0.00020101,2]
[351820101,1738801839203,-500.0,0.00020101,2]
[351820103,1738801839212,-500.0,0.00020101,2]
[351820105,1738801839221,-500.0,0.00020101,2]
[351820107,1738801839233,-500.0,0.00020101,2]
[351820109,1738801839243,-500.0,0.00020101,2]
[351820111,1738801839253,-500.0,0.00020101,2]
[351820113,1738801839262,-500.0,0.00020101,2]
[351820115,1738801839272,-500.0,0.00020101,2]
[351820117,1738801839281,-500.0,0.00020101,2]
[351820119,1738801839290,-610.76,0.00020101,2]
[351820121,1738801839299,-165.58222399,0.00020101,2]
[351820123,1738801839308,-363.80480421,0.00020101,2]
[351820125,1738801839318,-500.0,0.00020101,2]
[351820127,1738801839327,-500.0,0.00020101,2]
[351820129,1738801839336,-1041.69,0.00020101,2]
[351820131,1738801839346,-1041.69,0.00020101,2]
[351820133,1738801839356,-1041.69,0.00020101,2]
[351820135,1738801839366,-1041.69,0.00020101,2]
[351820137,1738801839379,-1041.69,0.00020101,2]
[351820139,1738801839389,-1041.69,0.00020101,2]
[351820141,1738801839399,-1041.69,0.00020101,2]
[351820143,1738801839408,-1041.69,0.00020101,2]
[351820145,1738801839418,-1041.69,0.00020101,2]
[351820147,1738801839427,-1041.69,0.00020101,2]
[351820149,1738801839437,-1041.69,0.00020101,2]
[351820151,1738801839447,-1041.69,0.00020101,2]
[351820153,1738801839456,-1041.69,0.00020101,2]
[351820155,1738801839465,-1041.69,0.00020101,2]
[351820157,1738801839475,-1041.69,0.00020101,2]
[351820159,1738801839484,-1041.69,0.00020101,2]
[351820161,1738801839494,-1041.69,0.00020101,2]
[351820162,1738801839504,-1041.69,0.00020101,2]
[351820165,1738801839513,-1041.69,0.00020101,2]
[351820167,1738801839522,-1041.69,0.00020101,2]
[351820168,1738801839531,-1041.69,0.00020101,2]
[351820170,1738801839541,-1041.69,0.00020101,2]
[351820172,1738801839550,-1041.69,0.00020101,2]
[351820174,1738801839561,-1041.88022633,0.00020101,2]
[351820176,1738801839570,-500.0,0.00020101,2]
[351820178,1738801839580,-500.0,0.00020101,2]
[351820180,1738801839589,-500.0,0.00020101,2]
[351820182,1738801839599,-275.36,0.00020101,2]
[351820184,1738801839608,-405.43,0.00020101,2]
[351820186,1738801839617,-500.0,0.00020101,2]
[351820188,1738801839627,-264.56,0.00020101,2]
[351820190,1738801839637,-500.0,0.00020101,2]
[351820192,1738801839646,-500.0,0.00020101,2]
[351820194,1738801839656,-500.0,0.00020101,2]
[351820195,1738801839665,-500.0,0.00020101,2]
[351820197,1738801839674,-609.64,0.00020101,2]
[351820199,1738801839684,-500.0,0.00020101,2]
[351820201,1738801839694,-500.0,0.00020101,2]
[351820203,1738801839704,-500.0,0.00020101,2]
[351820205,1738801839713,-500.0,0.00020101,2]
[351820207,1738801839722,-500.0,0.00020101,2]
[351820209,1738801839731,-500.0,0.00020101,2]
[351820211,1738801839740,-500.0,0.00020101,2]
[351820213,1738801839749,-500.0,0.00020101,2]
[351820215,1738801839758,-500.0,0.00020101,2]
[351820217,1738801839768,-500.0,0.00020101,2]
[351820219,1738801839777,-500.0,0.00020101,2]
[351820221,1738801839786,-500.0,0.00020101,2]
[351820223,1738801839795,-167.04820765,0.00020101,2]
[351820225,1738801839805,-500.0,0.00020101,2]
[351820226,1738801839814,-500.0,0.00020101,2]
[351820228,1738801839823,-500.0,0.00020101,2]
[351820230,1738801839832,-500.0,0.00020101,2]
[351820232,1738801839841,-500.0,0.00020101,2]
[351820234,1738801839850,-500.0,0.00020101,2]
[351820236,1738801839859,-500.0,0.00020101,2]
[351820238,1738801839871,-500.0,0.00020101,2]
[351820240,1738801839882,-500.0,0.00020101,2]
[351820242,1738801839891,-500.0,0.00020101,2]
[351820244,1738801839902,-500.0,0.00020101,2]
[351820247,1738801839911,-500.0,0.00020101,2]
[351820248,1738801839920,-500.0,0.00020101,2]
[351820250,1738801839930,-500.0,0.00020101,2]
[351820252,1738801839939,-500.0,0.00020101,2]
[351820254,1738801839948,-500.0,0.00020101,2]
[351820256,1738801839957,-500.0,0.00020101,2]
[351820258,1738801839967,-500.0,0.00020101,2]
[351820260,1738801839977,-500.0,0.00020101,2]
[351820262,1738801839986,-500.0,0.00020101,2]
[351820264,1738801839996,-500.0,0.00020101,2]
[351820266,1738801840005,-500.0,0.00020101,2]
[351820268,1738801840015,-500.0,0.00020101,2]
[351820270,1738801840024,-500.0,0.00020101,2]
[351820272,1738801840033,-500.0,0.00020101,2]
[351820274,1738801840042,-500.0,0.00020101,2]
[351820276,1738801840051,-500.0,0.00020101,2]
[351820278,1738801840060,-500.0,0.00020101,2]
[351820280,1738801840069,-500.0,0.00020101,2]
[351820282,1738801840079,-500.0,0.00020101,2]
[351820284,1738801840089,-500.0,0.00020101,2]
[351820286,1738801840098,-500.0,0.00020101,2]
[351820288,1738801840107,-500.0,0.00020101,2]
[351820290,1738801840116,-500.0,0.00020101,2]
[351820292,1738801840125,-500.0,0.00020101,2]
[351820294,1738801840135,-507.77600377,0.00020101,2]
[351820296,1738801840144,-500.0,0.00020103,2]
[351820298,1738801840157,-500.0,0.00020103,2]
[351820300,1738801840167,-500.0,0.00020103,2]
[351820302,1738801840176,-500.0,0.00020103,2]
[351820304,1738801840186,-484.33372786,0.00020103,2]
[351820306,1738801840197,-547.35506898,0.00020103,2]
[351820308,1738801840206,-500.0,0.00020103,2]
[351820310,1738801840215,-541.38,0.00020103,2]
[351820312,1738801840225,-532.92,0.00020103,2]
[351820314,1738801840235,-500.0,0.00020103,2]
[351820316,1738801840244,-500.0,0.00020103,2]
[351820318,1738801840254,-549.79144804,0.00020103,2]
[351820320,1738801840263,-500.0,0.00020103,2]
[351820322,1738801840271,-609.98,0.00020103,2]
[351820324,1738801840281,-387.915805,0.00020103,2]
[351820326,1738801840290,-500.0,0.00020103,2]
[351820328,1738801840300,-500.0,0.00020103,2]
[351820330,1738801840309,-537.57,0.00020103,2]
[351820332,1738801840320,-500.0,0.00020103,2]
[351820334,1738801840329,-500.0,0.00020103,2]
[351820336,1738801840338,-500.0,0.00020103,2]
[351820338,1738801840348,-500.0,0.00020103,2]
[351820340,1738801840357,-500.0,0.00020103,2]
[351820342,1738801840366,-500.0,0.00020103,2]
[351820344,1738801840375,-500.0,0.00020103,2]
[351820346,1738801840384,-500.0,0.00020103,2]
[351820348,1738801840393,-1511.91,0.00020103,2]
[351820350,1738801840403,-500.0,0.00020103,2]
[351820352,1738801840412,-500.0,0.00020103,2]
[351820354,1738801840422,-500.0,0.00020103,2]
[351820356,1738801840431,-500.0,0.00020103,2]
[351820358,1738801840441,-500.0,0.00020103,2]
[351820360,1738801840450,-500.0,0.00020103,2]
[351820362,1738801840460,-500.0,0.00020103,2]
[351820364,1738801840469,-500.0,0.00020103,2]
[351820366,1738801840478,-904.0,0.00020103,2]
[351820368,1738801840488,-110384.38776103,0.00020103,2]
[351820370,1738801840497,-542748.66705181,0.00020104,60]
[351820371,1738801840506,-1818.10411561,0.00020104,2]
[351820373,1738801840515,-6687.85906746,0.00020104,4]
[351820375,1738801840524,-2030145.7797178,0.00020104,30]
[351820377,1738801840533,-412.78038418,0.00020104,60]
[351820380,1738801840543,-118461.58413817,0.00020104,30]
[351820383,1738801840557,-1176.22849859,0.00020104,120]
[351820386,1738801840566,-214.28594684,0.00020104,7]
[351820388,1738801840575,-5129.18173122,0.00020104,4]
[351820390,1738801840584,-20269.86174445,0.00020104,5]
[351820392,1738801840593,-213.87925101,0.00020104,120]
[351820394,1738801840602,-438.72737866,0.00020104,120]
[351820396,1738801840612,-989.24311196,0.00020104,2]
[351820398,1738801840621,-1731.07207673,0.00020104,7]
[351820400,1738801840631,-13921.24247654,0.00020104,2]
[351820402,1738801840639,-218.0715596,0.00020104,2]
[351820404,1738801840649,-10092.01563392,0.00020104,2]
[351820406,1738801840658,-5969.82584962,0.00020104,7]
[351820408,1738801840667,-279.0,0.00020104,2]
[351820410,1738801840676,-1683.62926032,0.00020104,120]
[351820412,1738801840685,-3042.12749621,0.00020104,30]
[351820414,1738801840695,-4999.999999,0.00020104,5]
[351820416,1738801840704,-164.80711989,0.00020104,120]
[351820418,1738801840713,-1688.27739858,0.00020104,2]
[351820420,1738801840722,-200.65530395,0.00020104,2]
[351820422,1738801840730,-190.11906168,0.00020104,120]
[351820424,1738801840739,-359.55459406,0.00020104,5]
[351820426,1738801840748,-279.74022588,0.00020104,2]
[351820428,1738801840757,-1002.50211725,0.00020104,2]
[351820430,1738801840766,-1095.27379166,0.00020104,2]
[351820432,1738801840775,-162.91,0.00020104,2]
[351820433,1738801840784,-1076.0,0.00020104,120]
[351820435,1738801840793,-150.0,0.00020104,30]
[351820437,1738801840803,-1000.0,0.00020104,60]
[351820439,1738801840812,-1000.0,0.00020104,30]
[351820441,1738801840821,-1000.0,0.00020104,60]
[351820443,1738801840831,-1414.81994857,0.00020104,60]
[351820445,1738801840840,-1000.0,0.00020104,30]
[351820446,1738801840850,-1000.0,0.00020104,60]
[351820448,1738801840859,-1000.0,0.00020104,30]
[351820450,1738801840868,-1000.0,0.00020104,30]
[351820452,1738801840879,-1000.0,0.00020104,30]
[351820454,1738801840888,-1000.0,0.00020104,30]
[351820456,1738801840897,-1000.0,0.00020104,120]
[351820458,1738801840906,-150.0,0.00020104,2]
[351820460,1738801840915,-1000.0,0.00020104,30]
[351820462,1738801840924,-1000.0,0.00020104,60]
[351820464,1738801840934,-1000.0,0.00020104,120]
[351820466,1738801840943,-1000.0,0.00020104,60]
[351820468,1738801840952,-1000.0,0.00020104,30]
[351820470,1738801840961,-1000.0,0.00020104,60]
[351820472,1738801840971,-1000.0,0.00020104,30]
[351820474,1738801840979,-1000.0,0.00020104,60]
[351820476,1738801840988,-1000.0,0.00020104,60]
[351820478,1738801840997,-1000.0,0.00020104,30]
[351820479,1738801841006,-1003.69640723,0.00020104,30]
[351820481,1738801841015,-3839.0,0.00020104,30]
[351820483,1738801841024,-9594.25608728,0.00020104,2]
[351820485,1738801841033,-1114.83850089,0.00020104,90]
[351820487,1738801841042,-199656.77760736,0.00020104,2]
[351820489,1738801841052,-555.00688207,0.00020104,5]
[351820491,1738801841061,-1471.91144256,0.00020104,10]
[351820493,1738801841070,-999.999998,0.00020104,120]
[351820495,1738801841079,-623.9942063,0.00020104,30]
[351820497,1738801841088,-120754.90174884,0.00020104,2]
[351820499,1738801841097,-697.08260928,0.00020104,16]
[351820501,1738801841106,-3641581.29217053,0.00020104,30]
[351820517,1738801841266,-540.65,0.000201,2]
[351820519,1738801841276,-500.0,0.000201,2]
[351820521,1738801841285,-500.0,0.00020103,2]
[351820523,1738801841294,-3151731.50717394,0.00020104,30]
[351820525,1738801841305,-484.02,0.00020104,30]
[351820527,1738801841317,-519.55663543,0.00020104,30]
[351820529,1738801841328,-452.9945539,0.00020104,30]
[351820531,1738801841339,-547.03466666,0.00020104,30]
[351820534,1738801841351,-3553.97594792,0.00020104,30]
[351820735,1738801843237,-2082.10866612,0.00020004,2]
[351820747,1738801843348,-388.38651112,0.00020004,2]
[351820750,1738801843360,-503.3,0.00020004,2]
[351821015,1738801846042,-60.1497936,0.00020004,2]
[351821017,1738801846052,-500.0,0.000201,2]
[351821019,1738801846062,-500.0,0.000201,2]
[351821021,1738801846072,-500.0,0.000201,2]
[351821023,1738801846081,-500.0,0.00020103,2]
[351821025,1738801846091,-442.0258732,0.00020103,2]
[351821043,1738801846260,-131.5642268,0.00020103,2]
[351821045,1738801846270,-813.0,0.00020103,2]